bitfinex/quotes_ETHUSD_20250213
["timestamp","ask_amount","ask_price","bid_price","bid_amount"]
[1739467983876,0.287,2642.9,2642.4,3.0]
[1739467984097,0.287,2642.9,2642.4,4.05693]
[1739467984296,0.06837843,2642.8,2642.4,11.62568]
[1739467984500,0.06837843,2642.8,2642.5,3.78429]
[1739467984668,0.06837843,2642.8,2642.4,7.84126]
[1739467984998,0.06837843,2642.8,2642.2,4.59245]
[1739467985217,0.06837843,2642.8,2642.1,8.75]
[1739467985218,3.7844,2642.5,2642.1,8.75]
[1739467985370,0.7612,2642.8,2642.3,3.78448]
[1739467985568,0.06837843,2642.7,2642.3,3.78448]
[1739467985863,0.287,2642.9,2642.6,3.78415]
[1739467986462,0.287,2642.9,2642.7,3.78388]
[1739467986666,0.7912,2643.4,2642.9,3.78359]
[1739467986882,0.287,2643.3,2642.9,3.78359]
[1739467987055,0.287,2643.3,2643.0,3.78346]
[1739467987252,0.287,2643.3,2643.1,3.78343]
[1739467988793,0.287,2643.3,2643.2,3.78329]
[1739467988950,0.35537843,2643.3,2643.2,3.78329]
[1739467989297,0.35537843,2643.3,2643.0,0.7545]
[1739467990247,4.13856843,2643.3,2642.7,4.65891]
[1739467990555,0.35537843,2643.3,2643.1,3.78336]
[1739467990861,0.35537843,2643.3,2643.2,3.78329]
[1739467992076,0.06837843,2643.3,2643.2,3.78329]
[1739467992281,0.06837843,2643.3,2643.2,4.539961]
[1739467992464,0.287,2643.8,2643.2,4.539961]
[1739467992681,0.287,2643.8,2643.2,3.78329]
[1739467992879,0.07082287,2643.7,2643.2,3.78329]
[1739467993086,0.07082287,2643.7,2643.3,3.78304]
[1739467993250,3.85340287,2643.7,2643.2,3.78329]
[1739467993452,4.06943,2643.8,2643.2,3.78329]
[1739467993677,0.07082287,2643.6,2643.2,3.78329]
[1739467993992,0.07082287,2643.5,2642.9,6.78362]
[1739467994192,0.792,2643.9,2643.4,3.783]
[1739467994395,0.35782287,2643.8,2643.4,3.783]
[1739467994594,0.35782287,2643.8,2643.5,3.78277]
[1739467994764,0.35782287,2643.8,2643.4,3.783]
[1739467994966,0.35782287,2643.8,2643.5,3.78278]
[1739467995166,4.14026287,2643.8,2643.3,3.78307]
[1739467995440,4.14026287,2643.8,2643.4,4.243687]
[1739467996279,0.07082287,2643.8,2643.4,0.460707]
[1739467996482,0.07082287,2643.8,2643.5,3.78285]
[1739467996657,0.287,2643.9,2643.4,3.7829]
[1739467996858,0.07112628,2643.7,2643.4,7.56581]
[1739467997063,0.287,2643.9,2643.6,3.78272]
[1739467997257,0.287,2643.9,2643.8,3.78243]
[1739467997448,0.287,2644.2,2643.8,1.56291328]
[1739467997654,4.06895,2644.2,2643.7,3.78257]
[1739467997891,0.287,2644.2,2643.8,3.7824]
[1739467998091,4.06891,2644.2,2643.8,3.7824]
[1739467998488,4.06887,2644.2,2643.8,3.7824]
[1739467999002,0.287,2644.2,2643.6,3.78258]
[1739467999229,4.06893,2644.2,2643.6,3.78258]
[1739467999378,3.78201,2644.1,2643.5,4.58641]
[1739467999574,0.7583,2644.1,2643.3,13.33661]
[1739467999886,3.78275,2643.6,2643.3,8.75]
[1739468000211,3.78272,2643.6,2643.3,8.75]
[1739468000426,0.8009,2643.6,2643.3,8.75]
[1739468000796,4.58369,2643.6,2643.3,8.75]
[1739468000999,4.58365,2643.6,2643.3,8.75]
[1739468001201,0.8009,2643.6,2643.3,12.53311]
[1739468001370,0.8009,2643.6,2643.3,8.75]
[1739468001789,4.5837,2643.6,2643.3,8.75]
[1739468002134,6.05704,2644.1,2643.2,3.78326]
[1739468002135,3.78243,2643.8,2643.2,3.78326]
[1739468002433,3.78243,2643.8,2643.0,4.56964]
[1739468002434,3.78296,2643.5,2643.0,4.56964]
[1739468002749,3.78289,2643.5,2643.0,0.7861]
[1739468002886,0.8088,2643.4,2642.8,12.03378]
[1739468003093,0.287,2643.3,2643.0,3.7835]
[1739468003285,0.287,2643.3,2642.9,3.7837]
[1739468004125,0.0716193,2643.2,2642.9,3.7837]
[1739468004288,0.0716193,2643.2,2642.8,8.25]
[1739468004488,3.78351,2643.1,2642.7,1.6504]
[1739468004791,3.78373,2642.9,2642.5,3.7775]
[1739468004998,0.07142967,2642.8,2642.5,3.7775]
[1739468005198,0.07142967,2642.8,2642.5,7.56169]
[1739468005399,3.7836,2643.0,2642.5,7.56169]
[1739468005638,0.07142967,2642.9,2642.5,0.7775]
[1739468005849,3.85521967,2642.9,2642.5,0.7775]
[1739468006003,3.78379,2642.9,2642.5,0.7775]
[1739468006198,3.85531967,2642.8,2642.3,3.78451]
[1739468006433,3.78407,2642.7,2642.3,1.709663]
[1739468006699,7.63980104,2642.6,2642.0,3.78488]
[1739468006928,3.85556104,2642.6,2641.9,0.763]
[1739468007141,3.85556104,2642.6,2642.0,3.78501]
[1739468007323,0.07133104,2642.6,2642.2,3.78467]
[1739468007523,0.07133104,2642.6,2641.9,7.54804]
[1739468007857,3.78468,2642.3,2641.8,3.78525]
[1739468008036,0.287,2642.2,2641.7,3.78543]
[1739468008232,0.287,2642.2,2641.8,3.78519]
[1739468008433,3.85598511,2642.1,2641.6,0.7505]
[1739468008635,3.85598511,2642.1,2641.6,4.53599]
[1739468008948,3.85598511,2642.1,2641.6,2.6130176]
[1739468008949,0.07103511,2642.1,2641.6,2.6130176]
[1739468009130,3.7851,2642.0,2641.6,2.6130176]
[1739468009333,4.07176,2642.2,2641.7,3.7854]
[1739468009502,4.07176,2642.2,2641.6,2.6130176]
[1739468009503,0.07101993,2641.9,2641.6,2.6130176]
[1739468009709,0.287,2642.2,2641.4,1.553606]
[1739468009944,3.85638993,2641.8,2641.4,1.553606]
[1739468010148,0.8262,2641.9,2641.3,12.53592]
[1739468010308,0.07101993,2641.7,2641.3,8.75]
[1739468010532,3.78552,2641.7,2641.2,0.7747]
[1739468010723,3.78552,2641.7,2640.9,8.75]
[1739468010724,0.07101993,2641.6,2641.0,0.7733]
[1739468010924,0.07101993,2641.6,2641.3,3.78593]
[1739468011187,4.61135,2641.9,2641.3,3.78593]
[1739468011485,0.07101993,2641.8,2641.2,0.028285]
[1739468011626,0.07101993,2641.8,2641.3,3.78601]
[1739468011832,0.287,2641.7,2641.3,7.57191]
[1739468012026,0.8262,2641.9,2641.4,0.757191]
[1739468012227,0.07101993,2641.8,2641.1,4.32363384]
[1739468012458,0.07101993,2641.8,2641.5,3.78565]
[1739468012853,0.07101993,2641.8,2641.1,3.7862]
[1739468013064,0.07101993,2641.8,2641.3,3.786]
[1739468013376,0.07101993,2641.8,2641.5,3.78564]
[1739468013534,7.64173993,2641.8,2641.3,3.78596]
[1739468013975,0.07101993,2641.8,2641.3,3.78596]
[1739468014292,0.07101993,2641.8,2641.6,3.78556]
[1739468014498,0.07101993,2641.8,2641.7,3.78544]
[1739468014863,3.78425,2642.6,2642.1,3.78483]
[1739468015194,0.287,2642.7,2642.1,3.78483]
[1739468015195,0.06664477,2642.5,2642.4,3.78436]
[1739468015404,0.287,2642.6,2642.5,3.78429]
[1739468015695,0.287,2642.6,2642.2,3.78458]
[1739468015994,4.07116,2642.6,2642.2,1.332428]
[1739468016371,0.06664477,2642.5,2642.2,1.332428]
[1739468016869,0.06664477,2642.5,2642.4,3.78443]
[1739468017207,0.287,2642.7,2642.4,3.78443]
[1739468017698,0.06664477,2642.6,2642.5,3.78429]
[1739468017855,0.06664477,2642.6,2642.5,4.54398611]
[1739468018052,0.287,2642.7,2642.5,4.54398611]
[1739468018285,0.06664477,2642.6,2642.5,4.54398611]
[1739468018906,0.06664477,2642.6,2642.5,0.75969611]
[1739468019098,3.78387,2642.8,2642.3,3.7845]
[1739468019401,3.78402,2642.7,2642.2,5.117128]
[1739468019573,0.06652777,2642.6,2642.3,3.78448]
[1739468019776,4.07074,2642.9,2642.4,3.7843]
[1739468019961,0.06652777,2642.8,2642.4,3.7843]
[1739468020162,0.06652777,2642.8,2642.4,4.6744208]
[1739468020701,0.06652777,2642.8,2642.7,3.784]
[1739468021056,0.06652777,2642.8,2642.5,3.78428]
[1739468021256,0.287,2643.0,2642.7,3.784]
[1739468021457,0.287,2643.0,2642.6,3.78402]
[1739468022403,0.287,2643.0,2642.6,7.56808]
[1739468022587,0.287,2643.0,2642.6,3.78402]
[1739468022989,0.287,2643.0,2642.9,3.78372]
[1739468023154,0.7715,2643.3,2643.1,3.78336]
[1739468023354,0.287,2643.4,2642.7,0.767]
[1739468023599,0.287,2643.4,2643.0,3.78348]
[1739468024108,0.287,2643.4,2642.7,0.767]
[1739468024273,3.78321,2643.3,2642.8,3.78385]
[1739468024809,3.78339,2643.2,2642.7,3.784]
[1739468025101,4.59534,2643.1,2642.6,12.53411]
[1739468025301,4.59534,2643.1,2642.7,3.78388]
[1739468025302,0.8119,2643.1,2642.7,3.78388]
[1739468025462,0.8119,2643.1,2642.8,3.78385]
[1739468025689,1.0377,2643.4,2643.0,3.78352]
[1739468026429,4.82082,2643.4,2642.9,3.7837]
[1739468026582,4.82082,2643.4,2642.7,3.78399]
[1739468026583,3.7833,2643.2,2642.7,3.78399]
[1739468026796,3.78345,2643.1,2642.7,3.78399]
[1739468027000,0.06825279,2643.0,2642.7,3.78399]
[1739468027221,0.06825279,2643.0,2642.6,12.53414]
[1739468027392,0.06825279,2643.0,2642.6,12.53411]
[1739468027393,3.85184279,2643.0,2642.6,12.53411]
[1739468027616,0.06825279,2643.0,2642.6,8.75]
[1739468027816,3.78339,2643.2,2642.8,3.78384]
[1739468028149,0.06816923,2643.1,2642.8,3.78386]
[1739468028539,0.35516923,2643.1,2642.7,3.78394]
[1739468028741,0.35516923,2643.1,2643.0,3.78357]
[1739468029056,0.287,2643.1,2643.0,3.78357]
[1739468029652,0.287,2643.1,2642.9,3.78369]
[1739468029856,0.06816923,2643.0,2642.8,3.78379]
[1739468030147,0.06816923,2643.0,2642.7,4.56062]
[1739468030319,0.06816923,2643.0,2642.9,3.78372]
[1739468030519,0.06816923,2643.0,2642.7,6.4026379]
[1739468030520,0.287,2643.1,2642.8,3.78377]
[1739468030747,0.06832875,2643.0,2642.8,3.78377]
[1739468032937,0.06832875,2643.0,2642.9,3.78372]
[1739468033813,0.06832875,2643.0,2642.8,3.78377]
[1739468034147,0.06832875,2643.0,2642.8,3.78375]
[1739468034521,0.06832875,2643.0,2642.7,3.78399]
[1739468035460,3.85192875,2643.0,2642.5,4.6056]
[1739468035830,3.85192875,2643.0,2642.5,8.38982]
[1739468036163,3.78379,2642.9,2642.5,3.7842]
[1739468036451,0.06807049,2642.8,2642.5,3.7842]
[1739468036758,3.85194049,2642.8,2642.3,6.78445]
[1739468036942,0.06807049,2642.8,2642.1,5.25]
[1739468037142,0.06807049,2642.8,2642.4,4.55603]
[1739468037311,4.88275,2643.1,2642.7,3.78392]
[1739468037514,1.0993,2643.1,2642.7,3.78391]
[1739468037962,4.88274,2643.1,2642.7,3.78391]
[1739468038171,8.6663,2643.1,2642.6,3.78414]
[1739468038374,1.96593,2643.1,2642.4,0.7717]
[1739468038515,1.0993,2643.1,2642.9,3.78358]
[1739468038827,0.287,2643.0,2642.8,3.78384]
[1739468039358,4.07058,2643.0,2642.6,3.78412]
[1739468039574,0.287,2643.0,2642.7,3.78399]
[1739468039756,0.287,2643.0,2642.8,3.78378]
[1739468039956,0.287,2643.1,2642.9,3.78364]
[1739468040336,0.287,2643.1,2643.0,3.78357]
[1739468040674,0.287,2643.1,2642.7,3.78389]
[1739468040969,0.287,2643.1,2642.5,0.7752]
[1739468041173,0.287,2643.1,2642.7,3.78392]
[1739468041520,0.287,2643.1,2642.8,3.78386]
[1739468042173,0.287,2643.1,2642.9,3.7836]
[1739468042518,0.287,2643.1,2642.7,3.78394]
[1739468042973,0.287,2643.1,2642.8,3.78384]
[1739468043124,0.287,2643.1,2642.9,3.78366]
[1739468044464,0.287,2643.1,2642.9,3.78363]
[1739468044620,3.78266,2643.7,2643.2,3.78317]
[1739468044819,0.287,2643.3,2643.0,0.7976]
[1739468045021,0.8305,2643.2,2642.7,4.5816]
[1739468045256,0.06818444,2643.1,2642.7,8.36552]
[1739468045555,0.06818444,2643.1,2642.8,3.78377]
[1739468045722,0.06818444,2643.1,2642.7,0.7976]
[1739468045965,3.78298,2643.5,2642.7,0.7976]
[1739468045966,0.818,2643.5,2643.4,3.783]
[1739468046168,0.287,2643.6,2643.5,3.78274]
[1739468046460,0.287,2643.6,2642.9,0.02821309]
[1739468046461,0.287,2643.6,2643.4,7.56596]
[1739468046662,0.06832118,2643.5,2643.4,3.78298]
[1739468047238,0.06832118,2643.5,2643.2,3.78329]
[1739468047429,4.06974,2643.6,2643.2,3.78329]
[1739468047623,0.06832118,2643.5,2643.0,0.7792]
[1739468047829,0.06832118,2643.5,2643.4,3.783]
[1739468048833,0.06832118,2643.5,2643.4,4.54243302]
[1739468049038,0.287,2643.8,2643.6,3.78259]
[1739468049265,0.06849587,2643.7,2643.6,3.78259]
[1739468049470,0.287,2643.8,2643.6,3.78259]
[1739468049624,0.06849587,2643.7,2643.6,3.78259]
[1739468049824,0.8042,2644.0,2643.8,3.78234]
[1739468050026,0.06849587,2643.9,2643.8,3.78234]
[1739468050383,0.06849587,2643.9,2643.7,3.78255]
[1739468050601,0.06849587,2643.9,2643.8,3.78243]
[1739468050889,0.287,2644.2,2643.9,3.7822]
[1739468051031,0.287,2644.2,2644.0,3.78207]
[1739468051484,0.287,2644.2,2643.9,4.538675]
[1739468051646,0.287,2644.2,2643.9,3.7822]
[1739468051906,0.287,2644.2,2644.0,3.78212]
[1739468052052,0.287,2644.2,2644.1,3.782]
[1739468052232,0.287,2644.2,2643.8,3.78232]
[1739468052433,0.287,2644.2,2644.0,3.78211]
[1739468052749,0.287,2644.2,2644.1,3.782]
[1739468052944,0.287,2644.2,2643.4,16.20839789]
[1739468052945,0.7941,2644.4,2643.9,0.8247]
[1739468053291,1.066,2644.7,2644.5,3.78137]
[1739468053490,1.066,2644.7,2644.3,3.7817]
[1739468053627,1.066,2644.7,2644.4,3.78155]
[1739468054044,0.779,2644.7,2644.0,7.47240789]
[1739468054265,0.287,2644.7,2644.5,3.78129]
[1739468055036,0.287,2644.7,2644.6,3.78129]
[1739468055393,0.287,2644.7,2644.5,3.78141]
[1739468055892,0.287,2644.7,2644.3,3.78164]
[1739468056080,0.287,2644.7,2644.4,3.78153]
[1739468056481,0.287,2644.7,2644.2,3.78178]
[1739468056685,0.287,2644.7,2643.3,0.76005181]
[1739468056686,0.7687,2644.6,2643.3,0.76005181]
[1739468056910,3.78215,2644.0,2643.5,3.78279]
[1739468057300,0.7687,2644.1,2643.5,3.78279]
[1739468057481,4.55071,2644.1,2643.6,3.78264]
[1739468057969,4.55071,2644.1,2643.7,3.78249]
[1739468057970,0.7687,2644.1,2643.7,3.78249]
[1739468058164,4.55078,2644.1,2643.5,3.78272]
[1739468058479,0.7915,2644.4,2643.6,0.7846]
[1739468058694,0.287,2644.2,2643.9,7.56439]
[1739468058893,0.287,2644.2,2643.9,3.78219]
[1739468059208,0.287,2644.2,2644.0,3.78212]
[1739468059438,0.287,2644.2,2644.1,3.782]
[1739468059708,0.287,2644.5,2644.2,3.78186]
[1739468059902,0.287,2644.5,2644.3,3.78163]
[1739468060107,0.287,2644.5,2644.4,3.78157]
[1739468060405,0.287,2644.8,2644.7,3.78105]
[1739468060723,0.287,2644.8,2644.5,3.78132]
[1739468060906,1.53880383,2645.2,2644.6,3.78129]
[1739468061111,0.287,2645.1,2644.7,3.78114]
[1739468061483,0.287,2645.1,2644.7,7.56221]
[1739468061808,0.287,2645.0,2644.7,3.78106]
[1739468062163,0.287,2645.0,2644.6,3.78127]
[1739468062365,0.287,2645.0,2644.6,3.78119]
[1739468062609,0.287,2645.0,2644.7,3.78114]
[1739468063111,0.287,2645.0,2644.6,0.8757952]
[1739468063489,0.287,2645.0,2644.7,3.78114]
[1739468064109,0.06787634,2644.9,2644.7,3.78114]
[1739468064977,0.06787634,2644.9,2644.6,0.8757952]
[1739468065178,0.06787634,2644.9,2644.8,3.781]
[1739468065408,0.06787634,2644.9,2644.8,4.24667952]
[1739468066724,0.7659,2645.2,2644.8,4.24667952]
[1739468066924,0.06787634,2644.9,2644.8,3.781]
[1739468067131,1.0529,2645.2,2644.8,3.781]
[1739468067337,0.06787634,2644.9,2644.8,3.781]
[1739468067487,1.0529,2645.2,2644.8,3.781]
[1739468067825,1.0529,2645.2,2644.7,3.78112]
[1739468067826,0.06787634,2645.1,2644.9,3.78084]
[1739468068031,0.06787634,2645.1,2644.8,3.78098]
[1739468068622,3.84847634,2645.1,2644.6,3.78127]
[1739468068800,3.84847634,2645.1,2644.6,4.619275]
[1739468069006,0.06787634,2645.1,2644.7,3.78105]
[1739468069248,0.06787634,2645.1,2644.9,3.78085]
[1739468069389,0.06787634,2645.1,2644.9,3.7808]
[1739468069733,0.06787634,2645.1,2645.0,3.78071]
[1739468070234,0.287,2645.3,2645.2,3.78043]
[1739468070532,0.287,2645.4,2645.3,3.78026]
[1739468071933,0.7703,2645.8,2645.2,3.78042]
[1739468072232,3.78026,2645.4,2644.9,5.98737]
[1739468072437,3.77986,2645.6,2645.1,3.78057]
[1739468072586,3.78014,2645.5,2645.0,3.7807]
[1739468072787,0.7536,2645.3,2644.9,1.0]
[1739468073221,0.7536,2645.3,2645.0,3.78069]
[1739468073529,0.7536,2645.3,2644.9,4.78085]
[1739468073701,0.7536,2645.3,2645.1,3.78052]
[1739468073904,0.7527,2645.6,2645.0,0.7747]
[1739468074113,0.287,2645.7,2645.3,3.78015]
[1739468074291,4.06672,2645.7,2645.3,3.78015]
[1739468074889,0.287,2645.7,2645.3,3.78015]
[1739468076011,0.7527,2645.8,2645.5,3.77999]
[1739468076212,0.287,2645.7,2645.5,3.77999]
[1739468076541,0.287,2645.7,2645.3,3.78019]
[1739468076716,0.287,2645.7,2645.4,3.78014]
[1739468077226,4.06678,2645.7,2645.2,3.78034]
[1739468077415,0.287,2645.7,2645.1,7.56095]
[1739468077597,3.77998,2645.6,2645.1,3.78046]
[1739468077792,3.78001,2645.5,2645.0,0.7747]
[1739468078027,3.78001,2645.5,2645.0,4.55539]
[1739468078256,3.78001,2645.5,2645.0,6.364007]
[1739468078423,3.78039,2645.3,2644.9,4.78078]
[1739468078624,0.7532,2645.2,2644.9,1.0]
[1739468079033,0.7532,2645.2,2644.9,4.78082]
[1739468079350,0.06888663,2645.1,2645.0,3.78061]
[1739468079638,0.7532,2645.5,2645.0,3.78061]
[1739468081926,3.78071,2645.0,2644.9,1.0]
[1739468082134,3.84962701,2645.0,2644.9,1.0]
[1739468082440,7.86887509,2645.0,2644.9,1.0]
[1739468082759,5.58637509,2645.0,2644.9,1.0]
[1739468083231,4.94842701,2645.0,2644.9,1.0]
[1739468083639,1.16771701,2645.0,2644.9,1.0]
[1739468084155,0.35591701,2645.0,2644.9,1.0]
[1739468085463,4.90492701,2645.0,2644.9,1.0]
[1739468087319,14.4352249,2645.0,2644.9,1.0]
[1739468087533,16.45681239,2645.0,2644.9,1.0]
[1739468088351,6.9265145,2645.0,2644.9,1.0]
[1739468088533,4.90492701,2645.0,2644.9,1.0]
[1739468089671,1.12421701,2645.0,2644.9,1.0]
[1739468089873,0.35591701,2645.0,2644.9,1.0]
[1739468090284,4.13662701,2645.0,2644.9,1.0]
[1739468091089,0.35591701,2645.0,2644.9,1.0]
[1739468093003,4.13662701,2645.0,2644.9,1.0]
[1739468093187,5.91703771,2645.0,2644.9,1.0]
[1739468093391,9.00343771,2645.0,2644.9,1.0]
[1739468093860,12.00343771,2645.0,2644.9,1.0]
[1739468095409,12.01093771,2645.0,2644.9,1.0]
[1739468095563,12.56843771,2645.0,2644.9,1.0]
[1739468096261,7.22302701,2645.0,2644.9,1.0]
[1739468096462,0.88031701,2645.0,2644.9,1.0]
[1739468096667,4.94802701,2645.0,2644.9,1.0]
[1739468096885,1.16731701,2645.0,2644.9,1.0]
[1739468097263,4.94802701,2645.0,2644.9,1.0]
[1739468098302,8.32338871,2645.0,2644.9,1.0]
[1739468098811,6.04838871,2645.0,2644.9,1.0]
[1739468099002,4.94802701,2645.0,2644.9,1.0]
[1739468099766,0.35591701,2645.0,2644.9,1.0]
[1739468101406,4.13662701,2645.0,2644.9,1.0]
[1739468101565,0.35591701,2645.0,2644.9,1.0]
[1739468102891,0.06891701,2645.0,2644.9,2.669401]
[1739468103192,4.06765,2645.1,2644.9,1.0]
[1739468103369,0.35534741,2645.0,2644.9,1.0]
[1739468104814,0.06834741,2645.0,2644.9,1.0]
[1739468104974,0.35534741,2645.0,2644.9,1.0]
[1739468105413,4.13605741,2645.0,2644.9,1.0]
[1739468105716,4.54966315,2645.0,2644.9,1.0]
[1739468106137,0.35534741,2645.0,2644.9,1.0]
[1739468107871,4.13605741,2645.0,2644.9,1.0]
[1739468108228,4.94155741,2645.0,2644.9,1.0]
[1739468108574,7.21655741,2645.0,2644.9,1.0]
[1739468108773,10.9218553,2645.0,2644.9,1.0]
[1739468109013,12.59210883,2645.0,2644.9,1.0]
[1739468109171,25.61010883,2645.0,2644.9,1.0]
[1739468111526,26.37324559,2645.0,2644.9,1.0]
[1739468114233,16.90524559,2645.0,2644.9,1.0]
[1739468114406,16.34024559,2645.0,2644.9,1.0]
[1739468115097,16.05324559,2645.0,2644.9,1.0]
[1739468115300,16.34024559,2645.0,2644.9,1.0]
[1739468115911,14.66999206,2645.0,2644.9,1.0]
[1739468116115,1.11848417,2645.0,2644.9,1.0]
[1739468116523,4.89919417,2645.0,2644.9,1.0]
[1739468117140,4.61219417,2645.0,2644.9,1.0]
[1739468117324,4.13605741,2645.0,2644.9,1.0]
[1739468117502,0.35534741,2645.0,2644.9,1.0]
[1739468117703,4.13605741,2645.0,2644.9,1.0]
[1739468119302,11.76108993,2645.0,2644.9,1.0]
[1739468119508,12.56668993,2645.0,2644.9,1.0]
[1739468119737,12.7641247,2645.0,2644.9,1.0]
[1739468119925,25.2321247,2645.0,2644.9,0.36325355]
[1739468120125,25.2321247,2645.0,2644.9,0.19393803]
[1739468120546,25.2321247,2645.0,2644.9,8.03e-06]
[1739468122927,24.9451247,2645.0,2644.9,8.03e-06]
[1739468123174,15.56668993,2645.0,2644.9,8.03e-06]
[1739468124452,15.00168993,2645.0,2644.9,8.03e-06]
[1739468125401,14.71468993,2645.0,2644.9,8.03e-06]
[1739468125614,2.63034741,2645.0,2644.9,8.03e-06]
[1739468125866,6.41105741,2645.0,2644.9,8.03e-06]
[1739468126546,2.63034741,2645.0,2644.9,8.03e-06]
[1739468126911,6.41105741,2645.0,2644.9,8.03e-06]
[1739468127550,10.1088553,2645.0,2644.9,8.03e-06]
[1739468127768,11.57336972,2645.0,2644.9,8.03e-06]
[1739468128043,12.13086972,2645.0,2644.9,8.03e-06]
[1739468128239,18.15720898,2645.0,2644.9,8.03e-06]
[1739468128447,27.62520898,2645.0,2644.9,8.03e-06]
[1739468129349,18.15720898,2645.0,2644.9,8.03e-06]
[1739468129909,11.53199898,2645.0,2644.9,8.03e-06]
[1739468130110,6.41105741,2645.0,2644.9,8.03e-06]
[1739468130968,0.06834741,2645.0,2644.9,8.03e-06]
[1739468131366,0.287,2645.0,2644.9,8.03e-06]
[1739468131595,0.06808916,2645.0,2644.9,8.03e-06]
[1739468131771,0.287,2645.0,2644.9,8.03e-06]
[1739468131967,0.35508916,2645.0,2644.9,8.03e-06]
[1739468132168,0.43033393,2645.0,2644.9,8.03e-06]
[1739468132987,0.14333393,2645.0,2644.9,3.78086803]
[1739468133207,0.0075,2645.8,2645.3,0.8277]
[1739468133433,0.287,2645.5,2645.4,3.78003]
[1739468133585,3.77943,2645.9,2645.4,3.78003]
[1739468133789,0.287,2645.6,2645.3,8.38816]
[1739468134115,0.287,2645.6,2645.5,3.78]
[1739468134688,0.74650606,2646.2,2645.7,3.77969]
[1739468134886,0.287,2646.1,2645.8,0.8107]
[1739468135415,2.275,2646.4,2646.1,3.77903]
[1739468135729,0.287,2646.3,2646.2,3.77887]
[1739468136090,0.287,2646.3,2646.1,3.77901]
[1739468136494,0.287,2646.3,2646.2,0.7641]
[1739468137225,3.77823,2646.8,2646.2,0.7641]
[1739468137412,0.287,2646.4,2646.2,4.54306]
[1739468137619,0.287,2646.4,2646.2,0.7641]
[1739468138367,3.77845,2646.6,2646.2,0.7641]
[1739468138631,0.37782309,2646.7,2646.2,4.54307]
[1739468138826,0.286,2646.7,2646.2,4.54307]
[1739468139060,0.14441208,2646.6,2646.2,8.32199]
[1739468139259,0.14441208,2646.6,2645.9,3.77938]
[1739468139395,0.43041208,2646.6,2646.1,4.55116]
[1739468139604,0.286,2646.6,2646.2,3.77898]
[1739468139803,0.286,2646.6,2646.3,3.77883]
[1739468140061,0.14441208,2646.5,2646.3,3.77883]
[1739468140266,0.14441208,2646.5,2646.1,4.55114]
[1739468140569,0.14441208,2646.5,2646.3,3.77876]
[1739468140834,0.14441208,2646.5,2646.4,4.59991]
[1739468141058,0.286,2646.7,2646.6,3.77843]
[1739468141354,0.14441208,2646.5,2646.4,4.59991]
[1739468141657,0.14441208,2646.5,2646.4,0.8212]
[1739468141798,0.286,2646.7,2646.4,0.8212]
[1739468142001,0.14582393,2646.5,2646.4,0.8212]
[1739468142367,8.5e-07,2646.9,2646.4,0.8212]
[1739468142518,0.43182393,2646.5,2646.4,0.8212]
[1739468142700,0.286,2646.5,2646.4,4.59991]
[1739468142895,0.43188461,2646.5,2646.4,4.59991]
[1739468143121,0.43188461,2646.5,2646.4,0.8212]
[1739468143508,0.286,2646.5,2646.4,0.8212]
[1739468143709,0.43188461,2646.5,2646.4,4.59991]
[1739468144223,0.43188461,2646.5,2646.4,0.8212]
[1739468144224,0.14588461,2646.5,2646.4,0.8212]
[1739468144837,4.06429,2646.7,2646.4,0.8212]
[1739468145031,0.14102364,2646.5,2646.4,0.8212]
[1739468145235,0.286,2646.6,2646.4,0.8212]
[1739468145397,0.14102364,2646.5,2646.4,0.8212]
[1739468145603,0.14102364,2646.5,2646.2,0.7917]
[1739468145797,0.14102364,2646.5,2646.3,3.77886]
[1739468146242,0.14102364,2646.5,2646.3,3.77877]
[1739468146593,0.42702364,2646.5,2646.2,0.7917]
[1739468146797,0.42702364,2646.5,2646.4,3.77871]
[1739468147002,0.42702364,2646.5,2646.3,3.77886]
[1739468147747,0.42702364,2646.5,2646.4,3.77871]
[1739468148939,8.5e-07,2646.9,2646.8,3.77814]
[1739468149243,0.28600085,2646.9,2646.8,4.53084]
[1739468149799,0.42203605,2646.9,2646.8,4.53084]
[1739468150147,0.42203605,2646.9,2646.8,0.7527]
[1739468150296,0.42203605,2646.9,2646.7,3.77827]
[1739468150711,0.13603605,2646.9,2646.8,3.77814]
[1739468151015,0.42203605,2646.9,2646.7,3.77826]
[1739468151340,0.42203605,2646.9,2646.7,3.7782]
[1739468151500,0.42203605,2646.9,2646.7,7.55641]
[1739468151711,0.42203605,2646.9,2646.7,3.7782]
[1739468152040,0.42203605,2646.9,2646.8,3.77814]
[1739468152216,0.42203605,2646.9,2646.7,3.77828]
[1739468152411,0.42203605,2646.9,2646.7,3.77822]
[1739468152620,0.42203605,2646.9,2646.8,3.77814]
[1739468152996,0.13603605,2646.9,2646.8,4.60674]
[1739468153254,0.13603605,2646.9,2646.8,5.445236]
[1739468153415,5.91303792,2648.2,2646.9,0.8286]
[1739468153628,0.286,2648.1,2648.0,3.77643]
[1739468153810,0.286,2648.1,2647.7,0.8286]
[1739468153811,1.15686675,2648.1,2647.9,3.77656]
[1739468154148,0.41717701,2648.1,2648.0,3.77643]
[1739468155029,0.41717701,2648.1,2647.9,3.7765]
[1739468155233,0.13117701,2648.1,2647.9,3.77649]
[1739468155430,0.286,2648.1,2648.0,3.77643]
[1739468156042,0.005,2648.4,2648.3,3.776]
[1739468156242,0.291,2648.4,2648.3,3.776]
[1739468156607,0.005,2648.4,2648.3,3.776]
[1739468156808,0.291,2648.4,2648.3,3.776]
[1739468157438,0.005,2648.4,2648.3,3.776]
[1739468157637,0.005,2648.4,2648.3,5.326013]